Cogmind - Beta 17 @@@ ROGUE MODE // 2026.07.17 @ 04:39:15 Player: hlbuns Result: Destroyed self with Mini Grenade Launcher Performance ------------- Evolutions (0) 0 Regions Visited (2) 400 Robots Destroyed (33) 165 Value Destroyed (863) 863 Prototype IDs (0) 0 Alien Tech Used (0) 0 Bonus (0) 0 TOTAL SCORE: 1428 Bonus ------- None Cogmind --------- Core Integrity 0/250 Matter 252/300 Energy 240/250 System Corruption 0% Temperature Cool (0) Movement Walking (120) Location -10/Mines Parts ------- > --- POWER (1) -------- Ion Engine > --- PROPULSION (2) --- Aluminum Leg Aluminum Leg > --- UTILITY (2) ------ Small Storage Unit Weapon Shielding > --- WEAPON (2) ------- Medium Laser Mini Grenade Launcher > --- INVENTORY (8) ---- Ion Engine Light Nuclear Core Aluminum Leg Improved Heat Sink Improved Terrain Scanner Particle Gun Mini Grenade Launcher Peak State ------------ > --- POWER ------------ Ion Engine > --- PROPULSION ------- Aluminum Leg Aluminum Leg > --- UTILITY ---------- Small Storage Unit Improved Terrain Scanner > --- WEAPON ----------- Medium Laser Small Laser > --- INVENTORY -------- Ion Engine Wheel [Rating: 9] Favorites ----------- Power Ion Engine Engine Ion Engine Propulsion Aluminum Leg Leg Aluminum Leg Utility Small Storage Unit Device Sensor Array Storage Small Storage Unit Protection Weapon Shielding Weapon Medium Laser Energy Gun Medium Laser Launcher Mini Grenade Launcher Build | -11 -10 -10 ------- Run | Yrd Mat Min Slots Evolved . | . . . Power . | . . . Propulsion . | . . . Utility . | . . . Weapon . | . . . Parts Attached 18 | 7 6 5 Power 2 | 1 1 . Engine 2 | 1 1 . Core . | . . . Reactor . | . . . Propulsion 8 | 2 2 4 Treads . | . . . Leg 8 | 2 2 4 Wheel . | . . . Hover . | . . . Flight . | . . . Utility 4 | 2 1 1 Device 2 | 1 1 . Storage 1 | 1 . . Processor . | . . . Hackware . | . . . Protection 1 | . . 1 Artifact . | . . . Weapon 4 | 2 2 . Energy Gun 3 | 2 1 . Energy Cannon . | . . . Ballistic Gun . | . . . Ballistic Cannon . | . . . Launcher 1 | . 1 . Special Weapon . | . . . Impact Weapon . | . . . Slashing Weapon . | . . . Piercing Weapon . | . . . Special Melee Weapon . | . . . Unidentified Prototypes . | . . . Parts Lost 2 | . 1 1 Power 1 | . 1 . Propulsion 1 | . . 1 Utility . | . . . Weapon . | . . . Highest Loss Streak 1 | . 1 1 To Critical Strikes . | . . . Average Backups 6 | 1 6 7 Power 1 | . 1 2 Propulsion 1 | . 1 . Utility 1 | . 1 2 Weapon 1 | . . 1 Tool/Special . | . . . Unused Backups 7 | . 1 6 Power 2 | . . 2 Propulsion 2 | . 1 1 Utility 2 | . . 2 Weapon 1 | . . 1 Tool/Special . | . . . Average Slot Usage (%) 99 | . 100 99 Engine 14 | . 14 14 Leg 27 | . 28 27 Device 11 | . 14 6 Storage 14 | . 14 14 Protection 2 | . . 7 Energy Gun 23 | . 27 17 Launcher 4 | . . 10 Peak Build Rating 9 | 9 9 9 Average Rating 8 | 6 8 8 On Entrance 5 | . 9 8 Avg Prop Armor Cover (%) . | . . . Naked Turns . | . . . Heaviest Build 14 | 14 14 14 Greatest Support 20 | 20 20 20 Greatest Overweight (x) 1 | 1 . . Average Overweight (x) . | . . . Largest Inventory Capacity 8 | 8 8 8 Average Capacity 7 | 7 8 8 Most Carried 8 | 3 8 8 Average Carried 6 | 1 6 7 Final Capacity 8 | 8 8 8 Final Carried 8 | 2 8 7 Class Distribution -------------------- 100% | Mutant Dominant Class ---------------- Mutant | -10/Materials Mutant | -10/Mines Resources | -11 -10 -10 ----------- Run | Yrd Mat Min Matter Collected 635 | 273 57 305 Remotely . | . . . Salvage Created 786 | 75 539 172 Parts 50 | 5 25 20 Haulers Intercepted 1 | . 1 . Recyclers Shooed . | . . . Parts Field Recycled . | . . . Retrieved Matter . | . . . Parts Self-Destructed . | . . . Prevented . | . . . Parts Restored . | . . . Kills | -11 -10 -10 ------- Run | Yrd Mat Min Combat Hostiles Destroyed 26 | . 12 14 Guns 11 | . 8 3 AOE 13 | . 2 11 Classes Destroyed 9 | 2 4 3 Worker 3 | . 1 2 Builder 1 | . . 1 Tunneler 1 | 1 . . Hauler 1 | . 1 . Recycler 1 | 1 . . Operator 1 | . 1 . Swarmer 6 | . . 6 Grunt 19 | . 12 7 Assembled 1 | . . 1 Best Kill Streak 8 | 2 3 8 Combat Bots Only 8 | . 3 8 Max Kills in Single Turn 3 | 1 2 3 Gunslinging . | . . . Exploded 3 | . 1 3 Melee . | . . . Uniques/NPCs Destroyed . | . . . Combat | -11 -10 -10 -------- Run | Yrd Mat Min Hostile Shots Fired 86 | . 46 40 Missed 24 | . 11 13 Hits 62 | . 35 27 Projectile 62 | . 35 27 Damage Taken 963 | . 552 411 Core 259 | . 105 154 Absorbed by Shields . | . . . Redirected to Shielding 11 | . . 11 Core Remaining (%) 100 | 100 . . Volleys Fired 80 | 6 45 29 Largest 2 | 2 2 2 Hottest 90 | 90 90 90 Shots Fired 157 | 12 90 55 Gun 132 | 12 88 32 Cannon . | . . . Launcher 25 | . 2 23 Special . | . . . Kinetic . | . . . Thermal 132 | 12 88 32 Explosive 25 | . 2 23 Electromagnetic . | . . . Robot Hit Streak 11 | 6 11 8 Robot Miss Streak 3 | 1 3 3 Penetration Max . | . . . Secondary Targets . | . . . Shots Hit Robots 88 | 10 55 23 Core Hits 61 | 3 31 27 Critical Kills . | . . . Critical Parts Destroyed . | . . . Critical Strikes 8 | 1 5 2 Burn 8 | 1 5 2 Melee Attacks . | . . . Impact . | . . . Slashing . | . . . Piercing . | . . . Sneak Attacks . | . . . Combat Hostiles . | . . . Follow-up Attacks . | . . . Damage Inflicted 2474 | 118 832 1524 Guns 934 | 118 638 178 Cannons . | . . . Explosions 1531 | . 194 1337 Melee . | . . . Ramming 9 | . . 9 Kinetic . | . . . Thermal 964 | 118 668 178 Explosive 1501 | . 164 1337 Electromagnetic . | . . . Impact . | . . . Slashing . | . . . Piercing . | . . . Highest Corruption . | . . . Average Corruption . | . . . Corruption Purged . | . . . Corruption Blocked . | . . . Overload Shots . | . . . Overflow Damage 152 | . 21 131 Projectiles . | . . . Explosions 152 | . 21 131 Melee . | . . . Knockbacks . | . . . Impact . | . . . Kinetic . | . . . Secondary . | . . . Self-Inflicted Damage 211 | . 120 91 Shots 7 | . 3 4 Rammed . | . . . Targets Rammed 3 | . . 3 Kicked 3 | . . 3 Crushed . | . . . Highest Temperature 319 | 120 319 135 Average Temperature 74 | 51 93 46 Received Heat Transfer 402 | . 243 159 Siege Activations . | . . . Martial Activations . | . . . Shielding Activations . | . . . Robots Disrupted . | . . . Combat Hostiles . | . . . Robots Corrupted . | . . . Combat Hostiles . | . . . Parts Fried . | . . . Impact Corruptions . | . . . Robots Melted 2 | . 2 . Combat Hostiles 2 | . 2 . Parts Melted 8 | . 8 . Heat Transferred 3192 | 384 2142 666 Parts Sabotaged . | . . . Parts Stolen . | . . . Parts Stripped . | . . . Power Chain Reactions . | . . . Alert | -11 -10 -10 ------- Run | Yrd Mat Min Maximum Alert Level 1 | . . 1 Low Security (%) 82 | 100 100 52 Level 1 17 | . . 47 Level 2 . | . . . Level 3 . | . . . Level 4 . | . . . Level 5 . | . . . High Security . | . . . Max Security . | . . . Peak Influence 275 | 5 167 275 Initial 58 | . . 58 Average 87 | . 54 155 Influence Increases 913 | 10 437 466 Destroy 0b10 Robot/C 500 | . 240 260 Destroy 0b10 Robot/NC 40 | 10 15 15 Destroy Leader 112 | . 62 50 Allied During Kill 8 | . . 8 Successful Hack 9 | . 9 . Disable Machine 60 | . 60 . Destroy Structure 184 | . 51 133 Influence Decreases 677 | 10 286 381 Entered New Map 93 | . . 93 Time Decay 524 | 10 276 238 Lost Part 20 | . 10 10 Lost Ally 40 | . . 40 Squads Dispatched 3 | . 3 . Investigation . | . . . Extermination . | . . . Reinforcement 3 | . 3 . Assault . | . . . Garrison . | . . . Intercept . | . . . Searches Triggered . | . . . Construction Impeded . | . . . Haulers Reinforced . | . . . Active Scanning Responses . | . . . Cargo Convoy Interrupts . | . . . Stealth | -11 -10 -10 --------- Run | Yrd Mat Min Distress Signals 3 | . 3 . Communications Jammed . | . . . Distress Signals . | . . . Times Spotted 36 | . 19 17 Peak Tracking Total 6 | . 6 5 Tactical Retreats . | . . . Traps | -11 -10 -10 ------- Run | Yrd Mat Min Traps Triggered . | . . . Indirectly . | . . . Trap Hack Attempts . | . . . Triggered . | . . . Disarmed . | . . . Reprogrammed . | . . . Reused . | . . . Traps Extracted . | . . . Installed . | . . . Triggered . | . . . Machines | -11 -10 -10 ---------- Run | Yrd Mat Min Machines Disabled 4 | . 4 . Max in Single Turn 2 | . 2 . Machines Repaired . | . . . Machines Dismantled . | . . . Machines Sabotaged . | . . . Overloaded Fab Kills . | . . . Hacking | -11 -10 -10 --------- Run | Yrd Mat Min Machines Accessed 3 | . 3 . Terminals 3 | . 3 . Fabricators . | . . . Repair Stations . | . . . Recycling Units . | . . . Scanalyzers . | . . . Garrison Access . | . . . Total Hacks 9 | . 9 . Successful 4 | . 4 . Failed 5 | . 5 . Catastrophic . | . . . Database Lockouts . | . . . Manual 5 | . 5 . Terminals 9 | . 9 . Fabricators . | . . . Repair Stations . | . . . Recycling Units . | . . . Scanalyzers . | . . . Garrison Access . | . . . Terminal Hacks 2 | . 2 . Branch Access Points 1 | . 1 . Zone Layout 1 | . 1 . Fabricator Hacks . | . . . Repair Station Hacks . | . . . Recycling Unit Hacks . | . . . Scanalyzer . | . . . Garrison Access Hacks . | . . . Unauthorized Hacks 2 | . 2 . Terminals 2 | . 2 . Botnet 2 | . 2 . Fabricators . | . . . Repair Stations . | . . . Recycling Units . | . . . Scanalyzers . | . . . Garrison Access . | . . . Data Cores Recovered . | . . . Used . | . . . Hacking Detections 3 | . 3 . Full Trace Events . | . . . Feedback Events . | . . . Feedback Blocked . | . . . Robot Schematics Acquired . | . . . Robots Built . | . . . Authchips . | . . . Time . | . . . Total Robot Build Rating . | . . . Part Schematics Acquired . | . . . Parts Built . | . . . Authchips . | . . . Time . | . . . Total Part Build Rating . | . . . Part Studies Acquired . | . . . Parts Repaired . | . . . Time . | . . . Parts Recycled . | . . . Recycled Matter . | . . . Retrieved Matter . | . . . Retrieved Components . | . . . Parts Scanalyzed . | . . . Part Schematics Acquired . | . . . Parts Damaged . | . . . Bothacking | -11 -10 -10 ------------ Run | Yrd Mat Min Used RIF Installer . | . . . Robots Hacked . | . . . Non-combat . | . . . Combat . | . . . Robot Hacks Applied . | . . . Relay Couplers Released . | . . . Fabnet Peak Effective % . | . . . Robots Rewired . | . . . Allies Hacked . | . . . Hacks Repelled . | . . . Allies | -11 -10 -10 -------- Run | Yrd Mat Min Total Allies 3 | . . 3 Largest Group 3 | . . 3 Highest-Rated Group 40 | . . 40 Highest-Rated Ally 16 | . . 16 Total Orders . | . . . Ally Attacks 12 | . . 12 Total Damage 91 | . . 91 Kills 1 | . . 1 Allies Corrupted . | . . . Allies Melted . | . . . Intel | -11 -10 -10 ------- Run | Yrd Mat Min Active Infowar (turns) 1034 | 56 730 248 Sensors 802 | . 554 248 Terrain 232 | 56 176 . Robot Analysis Total . | . . . Derelict Logs Recovered 2 | . . 2 Drone Launches . | . . . Drone Recoveries . | . . . Exploration | -11 -10 -10 ------------- Run | Yrd Mat Min Turns Passed 1386 | 137 730 519 Spaces Moved 842 | 59 435 348 Core 5 | 5 . . Treads . | . . . Legs 837 | 54 435 348 Wheels . | . . . Hover . | . . . Flight . | . . . Fastest Speed 50 | 50 120 120 Average Speed 119 | 117 120 120 Slowest Speed 120 | 120 120 120 Overloaded Moves . | . . . Propulsion Burnouts . | . . . Robots Hopped . | . . . Potential Cave-ins . | . . . Cave-ins Triggered . | . . . Exploration Rate (%) 46 | 4 80 56 Regions Visited 2 Branch Regions 1 Pre-discovered Areas 2 | . . 2 Known Exits Taken 1 | . 1 . Unknown Exits Taken 1 | 1 . . Scrap Searched 1 | . . 1 Spaces Dug . | . . . Terrain Destroyed 231 | . 48 183 Melee . | . . . Projectile . | . . . AOE 231 | . 48 183 Terrain Rammed . | . . . Walls Destroyed . | . . . Machines Disabled . | . . . Actions | -11 -10 -10 --------- Run | Yrd Mat Min Total 1064 | 111 552 401 Wait 89 | 36 51 2 Move 840 | 58 434 348 Hop . | . . . Pick Up 14 | 2 8 4 Fast Attach 8 | 7 1 . Attach 3 | 1 1 1 Detach 1 | 1 . . Swap 14 | . 7 7 Drop 12 | . 5 7 Fire 80 | 6 45 29 Melee . | . . . Ram . | . . . Kick 3 | . . 3 Crush . | . . . Escape Stasis . | . . . Rewire . | . . . Trap . | . . . Miscellaneous . | . . . Route ------- -11/Scrapyard -10/Materials (discovered 3 exits: [*Mat] / *Min / [*Sub]) -10/Mines History --------- Turn | Location | Event 9 | -11/Scrapyard | Discovered new exit (range 15) 138 | -11/Scrapyard | Entered Materials 335 | -10/Materials | Build established: Mutant 512 | -10/Materials | Discovered new exit (range 16) 568 | -10/Materials | Discovered new exit (range 9) 570 | -10/Materials | Discovered new exit (range 13) 859 | -10/Materials | Identified exit to Mines 868 | -10/Materials | Entered Mines 902 | -10/Mines | Met a Derelict bent on vengeance 968 | -10/Mines | Learned location of Storage (-7) 995 | -10/Mines | Assisted by bots powering up and referring to "LRC-V3" 1049 | -10/Mines | Excavation squad dispatched 1049 | -10/Mines | A large section of the Mines collapsed 1065 | -10/Mines | Core integrity fell below 50% 1146 | -10/Mines | Destroyed 8 combat bots 1332 | -10/Mines | Core integrity fell below 20% 1387 | -10/Mines | Destroyed self with Mini Grenade Launcher Last Messages --------------- 01330_ K-01 Serf destroyed. 01333_ G-34 Mercenary suffers critical hit (Burn). 01337_ Aluminum Leg destroyed. 01338_ Destroyed Ion Engine. 01338_ G-34 Mercenary destroyed. 01345_ The unstable cave ceiling collapses. 01348_ Acquired 12 matter. 01352_ The unstable cave ceiling collapses. 01354_ Acquired 38 matter. 01356_ Acquired 44 matter. 01359_ Dropped Aluminum Leg. 01359_ Acquired Aluminum Leg. 01360_ Dropped Aluminum Leg. 01360_ Acquired Aluminum Leg. 01362_ Dropped Sensor Array. 01363_ Dropped Sml. Laser. 01366_ Acquired Particle Gun. 01369_ Kicked T-07 Excavator out of the way. 01378_ The unstable cave ceiling collapses. Map ----- +----------------------------------------------------+ | | | | | | | | | | | | | | | ?????????????????????????????????????????????????? | | ????????###??????????????????????????????????????? | | #?????## ##?????????????????????????????????????? | | ####### #?????????????????????????????????????? | | ## #?????????????????????????????????????? | | #??????????????????????????????????????? | | ## #??????????????????????????????????????? | | # #### ##??????????????????????????????????????? | | ####??# ##???????????????????????????????????????? | | ??????# #?????????????????#??????????????????????? | | ??????# #???????????????##s??????????????????????? | | ??????# #???????????????# ??????????????????????? | | #?????# #???####????????#s ??????????????????????? | | ####### ##### ##???????#s ??????????????????????? | | ##??????#;#??????????????????????? | | ##?????# #??????????????????????? | | ############ #?????# ??????????????????????? | | ???????????## #???### ###???????????????????? | | #??????????## #???# @ #???????????????????? | | ##????????## ######## #### #???????????????????? | | #???????## ###### # ##??????????????????????? | | #???????# ## #??????????????????????? | | ##???????# ## # # ##??????????????????????? | | #????????## ## #??????????????????????? | | ?????????## ##??????????????????????? | | ########## #???????????????????????? | | # ## ## #???????????????????????? | | ### % ###???????????????????????? | | ##### ####????????????????????????? | | #??###*#???????????????????????????? | | #????#=#???????????????????????????? | | ##???#=###?????????????????????????? | | ##?## =!#####?????????????????????? | | ### #?# !=! ##????????????????????? | | # ##?## #?# %[ #????????????????????? | | ### ####???## ##?## #????????????????????? | | ??# #???????# #???#### ##????????????????????? | | ??# #???????# #??????# ####?????????????????????? | | ??# #??????## #?????## #????????????????????????? | | ??# #??????# ####### #####????????????????????? | | ?## ######?# # ##???????????????????? | | ## ### ## ##??????????????????? | | ## #??????????????????? | +----------------------------------------------------+ Best States ------------- Heat Dissipation 25 Energy Generation 10 Energy Capacity 250 Matter Stores 300 Matter Capacity 300 Sight Range 16 Robot Scan Range 14 Terrain Scan Range 16 Terrain Scan Density 10 Weapon Shielding 33 Evasion (%) 55 Item Schematics ----------------- None Robot Schematics ------------------ None Fabricated ------------ Nothing Repaired ---------- Nothing Studied --------- None Alien Tech Used ----------------- None Achievements -------------- None Challenges ------------ None Game ------ Seed TargetPiercingGuard Manual? 0 Play Time 00:18:46 Cumulative 20.5 hours Start 2026.07.17 @ 04:22:18 End 2026.07.17 @ 04:39:15 Sessions 3 Manual Loads 0 Difficulty Rogue Special Mode None Game No. 23 Rogue 11 Adventurer 12 Explorer 0 Win Type - Total 0 Types 0/0/0/0/0/0/0/0/0/0 Lore% 11 Gallery% 19 Achievement% 18 Wizard Run 0 Options --------- Layout 2 ASCII 0 Keyboard 1 Movement Arrows Keybinds 0 Fullscreen 2 Font 32/SmallcapsGlow Map View 50x44 Zoom Use 0% Tactical HUD 1 Map Filters NONE Filters NONE Steam 1 RUN: cb1ea4ba-ee3c-4fe7-9298-92d0585025db